[Event "*** SCC Grand Prix: Titled Tuesday Blitz"]
[Site "Chess.com"]
[Date "2020.08.11"]
[Round "7"]
[White "boasovietica"]
[Black "AleksanderHnydiuk"]
[Result "1-0"]
[WhiteElo "2413"]
[BlackElo "2539"]
[TimeControl "180+1"]
[EndTime "11:19:28 PDT"]
[Termination "boasovietica won on time"]

1. e4 {[%clk 0:03:00.9]} 1... c6 {[%clk 0:02:59.4]} 2. d4 {[%clk 0:02:59.7]}
2... d5 {[%clk 0:03:00.3]} 3. exd5 {[%clk 0:02:59.9]} 3... cxd5 {[%clk
0:03:00.2]} 4. Bd3 {[%clk 0:03:00.5]} 4... Nf6 {[%clk 0:02:58.5]} 5. Ne2 {[%clk
0:02:59.4]} 5... Nc6 {[%clk 0:02:57.3]} 6. c3 {[%clk 0:02:59.4]} 6... Bg4 {[%clk
0:02:56]} 7. O-O {[%clk 0:02:59.6]} 7... e6 {[%clk 0:02:55.2]} 8. Qe1 {[%clk
0:02:59.7]} 8... Bxe2 {[%clk 0:02:38.9]} 9. Qxe2 {[%clk 0:02:58.6]} 9... Bd6
{[%clk 0:02:36.8]} 10. Bg5 {[%clk 0:02:57.5]} 10... Qc7 {[%clk 0:02:30.7]} 11.
h3 {[%clk 0:02:39.2]} 11... Bh2+ {[%clk 0:02:29.9]} 12. Kh1 {[%clk 0:02:37.5]}
12... Bf4 {[%clk 0:02:30.8]} 13. Bxf4 {[%clk 0:02:26.7]} 13... Qxf4 {[%clk
0:02:31.7]} 14. Nd2 {[%clk 0:02:26.6]} 14... O-O {[%clk 0:02:30.2]} 15. Rfe1
{[%clk 0:02:22.6]} 15... Rfe8 {[%clk 0:02:22.6]} 16. Nf3 {[%clk 0:02:22.2]}
16... Rac8 {[%clk 0:02:09.1]} 17. Rad1 {[%clk 0:02:08.7]} 17... Nd7 {[%clk
0:02:06.6]} 18. Bb1 {[%clk 0:02:04.3]} 18... a6 {[%clk 0:01:59.3]} 19. Qd3
{[%clk 0:02:03.6]} 19... g6 {[%clk 0:01:55.9]} 20. Re3 {[%clk 0:01:46.7]} 20...
Na5 {[%clk 0:01:55.3]} 21. Kg1 {[%clk 0:01:22]} 21... b5 {[%clk 0:01:51.4]} 22.
Ne5 {[%clk 0:01:15.1]} 22... Nxe5 {[%clk 0:01:49.6]} 23. Rxe5 {[%clk 0:01:02.3]}
23... Nc4 {[%clk 0:01:37.2]} 24. Re2 {[%clk 0:01:01.5]} 24... Qd6 {[%clk
0:01:37]} 25. a3 {[%clk 0:00:56.3]} 25... a5 {[%clk 0:01:35.5]} 26. h4 {[%clk
0:00:56.1]} 26... b4 {[%clk 0:01:18.3]} 27. axb4 {[%clk 0:00:57]} 27... axb4
{[%clk 0:01:18.8]} 28. h5 {[%clk 0:00:55.8]} 28... Rc7 {[%clk 0:01:05.3]} 29.
Qf3 {[%clk 0:00:49.2]} 29... Rb7 {[%clk 0:00:41.2]} 30. hxg6 {[%clk 0:00:44.7]}
30... hxg6 {[%clk 0:00:40.4]} 31. g3 {[%clk 0:00:40.7]} 31... Kg7 {[%clk
0:00:40.1]} 32. Kg2 {[%clk 0:00:37.4]} 32... Reb8 {[%clk 0:00:39.7]} 33. Bd3
{[%clk 0:00:23.4]} 33... bxc3 {[%clk 0:00:36.5]} 34. bxc3 {[%clk 0:00:24.3]}
34... Rh8 {[%clk 0:00:22.8]} 35. Qg4 {[%clk 0:00:20.5]} 35... Rb6 {[%clk
0:00:17.8]} 36. Rde1 {[%clk 0:00:17.9]} 36... Qc7 {[%clk 0:00:14.3]} 37. Rh1
{[%clk 0:00:07.2]} 37... Rxh1 {[%clk 0:00:13.7]} 38. Kxh1 {[%clk 0:00:08.1]}
38... Nb2 {[%clk 0:00:13]} 39. Bb1 {[%clk 0:00:03.9]} 39... Qxc3 {[%clk
0:00:10.8]} 40. Kg2 {[%clk 0:00:04.1]} 40... Nd3 {[%clk 0:00:09.7]} 41. Bxd3
{[%clk 0:00:03.3]} 41... Qxd3 {[%clk 0:00:10.6]} 42. Re3 {[%clk 0:00:03.6]}
42... Qc4 {[%clk 0:00:10.2]} 43. Qf4 {[%clk 0:00:03.9]} 43... Qc6 {[%clk
0:00:08.4]} 44. Qe5+ {[%clk 0:00:04.2]} 44... Kf8 {[%clk 0:00:08.6]} 45. Qh8+
{[%clk 0:00:03.9]} 45... Ke7 {[%clk 0:00:08.8]} 46. Qh4+ {[%clk 0:00:04.2]}
46... Kd7 {[%clk 0:00:08.3]} 47. Qf6 {[%clk 0:00:04.5]} 47... Ke8 {[%clk
0:00:08.5]} 48. Qh8+ {[%clk 0:00:04.8]} 48... Ke7 {[%clk 0:00:08.7]} 49. Rf3
{[%clk 0:00:04.9]} 49... Qe8 {[%clk 0:00:07]} 50. Qf6+ {[%clk 0:00:04.6]} 50...
Kd7 {[%clk 0:00:07.3]} 51. Qxf7+ {[%clk 0:00:04.9]} 51... Qxf7 {[%clk
0:00:07.4]} 52. Rxf7+ {[%clk 0:00:05.8]} 52... Kd6 {[%clk 0:00:07.7]} 53. Rg7
{[%clk 0:00:05.5]} 53... Rb4 {[%clk 0:00:08.1]} 54. Rxg6 {[%clk 0:00:05.4]}
54... Rxd4 {[%clk 0:00:08.6]} 55. Kf3 {[%clk 0:00:05.4]} 55... Rd3+ {[%clk
0:00:07.2]} 56. Ke2 {[%clk 0:00:05.7]} 56... Rb3 {[%clk 0:00:06.8]} 57. Rf6
{[%clk 0:00:05.9]} 57... Ke5 {[%clk 0:00:06.7]} 58. Rf8 {[%clk 0:00:05.7]} 58...
Ke4 {[%clk 0:00:06.6]} 59. g4 {[%clk 0:00:05.7]} 59... Rb2+ {[%clk 0:00:06.4]}
60. Kf1 {[%clk 0:00:06]} 60... d4 {[%clk 0:00:06.6]} 61. g5 {[%clk 0:00:06.5]}
61... Rb5 {[%clk 0:00:05.7]} 62. f4 {[%clk 0:00:05.1]} 62... Kf3 {[%clk
0:00:05.5]} 63. Ke1 {[%clk 0:00:05]} 63... Ke3 {[%clk 0:00:05.6]} 64. Kf1 {[%clk
0:00:04.9]} 64... Rb1+ {[%clk 0:00:04.7]} 65. Kg2 {[%clk 0:00:05]} 65... d3
{[%clk 0:00:05.1]} 66. g6 {[%clk 0:00:05.2]} 66... Rb7 {[%clk 0:00:04.5]} 67.
Rf7 {[%clk 0:00:04.3]} 67... Rb8 {[%clk 0:00:04.8]} 68. Rd7 {[%clk 0:00:04.3]}
68... Ke2 {[%clk 0:00:03.8]} 69. Kg3 {[%clk 0:00:04.1]} 69... Rg8 {[%clk
0:00:03.1]} 70. f5 {[%clk 0:00:03.7]} 70... exf5 {[%clk 0:00:02.8]} 71. g7
{[%clk 0:00:04.1]} 71... d2 {[%clk 0:00:02.7]} 72. Kf4 {[%clk 0:00:04.5]} 72...
Rxg7 {[%clk 0:00:02.3]} 73. Re7+ {[%clk 0:00:02.8]} 1-0

[Event "*** SCC Grand Prix: Titled Tuesday Blitz"]
[Site "Chess.com"]
[Date "2020.08.11"]
[Round "7"]
[White "davidkalashian"]
[Black "Gerodot71"]
[Result "1-0"]
[WhiteElo "2575"]
[BlackElo "2402"]
[TimeControl "180+1"]
[EndTime "11:19:33 PDT"]
[Termination "davidkalashian won by checkmate"]

1. e4 {[%clk 0:03:00.9]} 1... e5 {[%clk 0:02:59.5]} 2. Nf3 {[%clk 0:03:00]} 2...
Nc6 {[%clk 0:02:59.3]} 3. d4 {[%clk 0:02:57.6]} 3... exd4 {[%clk 0:02:59.2]} 4.
Nxd4 {[%clk 0:02:44.7]} 4... Bc5 {[%clk 0:02:57.1]} 5. Nxc6 {[%clk 0:02:43]}
5... bxc6 {[%clk 0:02:55.2]} 6. Nd2 {[%clk 0:02:40]} 6... Qh4 {[%clk 0:02:52.6]}
7. Qf3 {[%clk 0:02:36.4]} 7... d5 {[%clk 0:02:31.8]} 8. Qg3 {[%clk 0:02:28.9]}
8... Qe7 {[%clk 0:02:26.9]} 9. Qxg7 {[%clk 0:02:22]} 9... Qf6 {[%clk 0:02:14.9]}
10. Qxf6 {[%clk 0:02:13.2]} 10... Nxf6 {[%clk 0:02:15.8]} 11. exd5 {[%clk
0:02:10.2]} 11... cxd5 {[%clk 0:02:14.5]} 12. Nb3 {[%clk 0:02:09.5]} 12... Bb6
{[%clk 0:02:13.3]} 13. Bb5+ {[%clk 0:01:57.5]} 13... Bd7 {[%clk 0:02:12.7]} 14.
Bxd7+ {[%clk 0:01:56.8]} 14... Kxd7 {[%clk 0:02:13.6]} 15. O-O {[%clk
0:01:49.6]} 15... Rhg8 {[%clk 0:02:11.1]} 16. Be3 {[%clk 0:01:39.8]} 16... Rg6
{[%clk 0:02:08.7]} 17. a4 {[%clk 0:01:23]} 17... Rag8 {[%clk 0:02:03.8]} 18. g3
{[%clk 0:01:22.5]} 18... Ng4 {[%clk 0:01:47.5]} 19. a5 {[%clk 0:01:00.5]} 19...
Nxe3 {[%clk 0:01:25.3]} 20. fxe3 {[%clk 0:00:55.4]} 20... Bxe3+ {[%clk
0:01:26.2]} 21. Kg2 {[%clk 0:00:55.1]} 21... R8g7 {[%clk 0:01:22.9]} 22. Rae1
{[%clk 0:00:50.7]} 22... Re6 {[%clk 0:01:21.4]} 23. Rf3 {[%clk 0:00:48.9]} 23...
d4 {[%clk 0:01:07.5]} 24. Nc5+ {[%clk 0:00:47.2]} 24... Kd6 {[%clk 0:01:08.1]}
25. Nxe6 {[%clk 0:00:46.8]} 25... fxe6 {[%clk 0:01:09]} 26. Ref1 {[%clk
0:00:40]} 26... Rg5 {[%clk 0:01:09.1]} 27. Rf7 {[%clk 0:00:17.3]} 27... Rxa5
{[%clk 0:01:08.7]} 28. Rxh7 {[%clk 0:00:17.4]} 28... Rb5 {[%clk 0:01:08.6]} 29.
b3 {[%clk 0:00:17]} 29... Rc5 {[%clk 0:01:09.2]} 30. h4 {[%clk 0:00:14.3]} 30...
Rxc2+ {[%clk 0:01:09.2]} 31. Kf3 {[%clk 0:00:14.3]} 31... Rc3 {[%clk 0:01:04.9]}
32. Ke4 {[%clk 0:00:11.3]} 32... Rxb3 {[%clk 0:01:04.3]} 33. Rff7 {[%clk
0:00:10.8]} 33... c5 {[%clk 0:00:56.5]} 34. Rd7+ {[%clk 0:00:09.8]} 34... Kc6
{[%clk 0:00:56.6]} 35. Rc7+ {[%clk 0:00:09.5]} 35... Kb5 {[%clk 0:00:56.1]} 36.
Rb7+ {[%clk 0:00:08.9]} 36... Kc4 {[%clk 0:00:56.5]} 37. Rxb3 {[%clk 0:00:07.7]}
37... Kxb3 {[%clk 0:00:57.4]} 38. Rb7+ {[%clk 0:00:05.6]} 38... Kc2 {[%clk
0:00:56.3]} 39. h5 {[%clk 0:00:03.1]} 39... Bh6 {[%clk 0:00:25.9]} 40. Rc7
{[%clk 0:00:02.1]} 40... Bf8 {[%clk 0:00:26.2]} 41. h6 {[%clk 0:00:01.9]} 41...
Bxh6 {[%clk 0:00:23.8]} 42. Rxc5+ {[%clk 0:00:01.6]} 42... Kd2 {[%clk
0:00:23.7]} 43. Rc4 {[%clk 0:00:01.7]} 43... Be3 {[%clk 0:00:22.7]} 44. Ra4
{[%clk 0:00:02.3]} 44... Ke2 {[%clk 0:00:16.8]} 45. Ra2+ {[%clk 0:00:02.2]}
45... Kf1 {[%clk 0:00:14.5]} 46. Kd3 {[%clk 0:00:03.1]} 46... e5 {[%clk
0:00:12.1]} 47. g4 {[%clk 0:00:04]} 47... Bf4 {[%clk 0:00:12.2]} 48. Rxa7 {[%clk
0:00:03.9]} 48... Kf2 {[%clk 0:00:12.4]} 49. Ke4 {[%clk 0:00:04.8]} 49... Ke2
{[%clk 0:00:12]} 50. Ra2+ {[%clk 0:00:04.4]} 50... Kf1 {[%clk 0:00:12.4]} 51.
Kf3 {[%clk 0:00:04.5]} 51... Ke1 {[%clk 0:00:12.4]} 52. Ke4 {[%clk 0:00:04.9]}
52... Kf1 {[%clk 0:00:12.4]} 53. Rc2 {[%clk 0:00:04.6]} 53... Ke1 {[%clk
0:00:11.4]} 54. Rg2 {[%clk 0:00:04.3]} 54... Kf1 {[%clk 0:00:11.2]} 55. Rb2
{[%clk 0:00:04.9]} 55... Ke1 {[%clk 0:00:11.2]} 56. Rb5 {[%clk 0:00:05.1]} 56...
Ke2 {[%clk 0:00:10.8]} 57. Rd5 {[%clk 0:00:06]} 57... Kd2 {[%clk 0:00:07.1]} 58.
Rd8 {[%clk 0:00:05.6]} 58... Ke2 {[%clk 0:00:07.2]} 59. Rd7 {[%clk 0:00:06]}
59... Kd2 {[%clk 0:00:04.8]} 60. Ra7 {[%clk 0:00:06.5]} 60... Ke2 {[%clk
0:00:05.1]} 61. Ra3 {[%clk 0:00:06.3]} 61... Ke1 {[%clk 0:00:05.6]} 62. Rf3
{[%clk 0:00:06.7]} 62... Ke2 {[%clk 0:00:05.4]} 63. Rb3 {[%clk 0:00:06.8]} 63...
Ke1 {[%clk 0:00:04.8]} 64. Rb2 {[%clk 0:00:06.7]} 64... Kd1 {[%clk 0:00:04.9]}
65. Kf3 {[%clk 0:00:05.5]} 65... Ke1 {[%clk 0:00:05.3]} 66. Re2+ {[%clk
0:00:05.4]} 66... Kd1 {[%clk 0:00:05.5]} 67. Rg2 {[%clk 0:00:05.7]} 67... Ke1
{[%clk 0:00:05.6]} 68. g5 {[%clk 0:00:06]} 68... Bxg5 {[%clk 0:00:06.1]} 69.
Rxg5 {[%clk 0:00:05.7]} 69... d3 {[%clk 0:00:06.1]} 70. Ke3 {[%clk 0:00:06.1]}
70... e4 {[%clk 0:00:04.4]} 71. Rg1# {[%clk 0:00:05.7]} 1-0

[Event "*** SCC Grand Prix: Titled Tuesday Blitz"]
[Site "Chess.com"]
[Date "2020.08.11"]
[Round "7"]
[White "Zq1"]
[Black "PavelChernomordik"]
[Result "0-1"]
[WhiteElo "2486"]
[BlackElo "2368"]
[TimeControl "180+1"]
[EndTime "11:19:35 PDT"]
[Termination "PavelChernomordik won by resignation"]

1. Nf3 {[%clk 0:03:00.9]} 1... g6 {[%clk 0:02:59.4]} 2. c4 {[%clk 0:03:00.3]}
2... Bg7 {[%clk 0:02:58.1]} 3. d4 {[%clk 0:02:59.4]} 3... d6 {[%clk 0:02:57.6]}
4. Nc3 {[%clk 0:02:57.5]} 4... Nc6 {[%clk 0:02:56.3]} 5. d5 {[%clk 0:02:55.6]}
5... Ne5 {[%clk 0:02:55.6]} 6. Nxe5 {[%clk 0:02:54.3]} 6... Bxe5 {[%clk
0:02:53.9]} 7. e4 {[%clk 0:02:48.4]} 7... c6 {[%clk 0:02:53.1]} 8. Be2 {[%clk
0:02:46]} 8... Nf6 {[%clk 0:02:44.1]} 9. Bd2 {[%clk 0:02:35.4]} 9... O-O {[%clk
0:02:39.1]} 10. Bd3 {[%clk 0:02:27.8]} 10... e6 {[%clk 0:02:29.6]} 11. dxe6
{[%clk 0:02:19.8]} 11... Bxe6 {[%clk 0:02:26.5]} 12. O-O {[%clk 0:02:19.6]}
12... Ng4 {[%clk 0:02:11.2]} 13. h3 {[%clk 0:02:08.5]} 13... Nf6 {[%clk
0:02:00.4]} 14. Kh1 {[%clk 0:02:05]} 14... Nh5 {[%clk 0:01:54.3]} 15. Ne2 {[%clk
0:01:47.8]} 15... Qh4 {[%clk 0:01:46.3]} 16. Ng1 {[%clk 0:01:28.4]} 16... f5
{[%clk 0:01:37.2]} 17. Nf3 {[%clk 0:01:23.5]} 17... Qe7 {[%clk 0:01:33.6]} 18.
Nxe5 {[%clk 0:01:14.7]} 18... dxe5 {[%clk 0:01:33.1]} 19. exf5 {[%clk
0:01:14.8]} 19... Bxf5 {[%clk 0:01:31.2]} 20. Bxf5 {[%clk 0:01:13.1]} 20... Rxf5
{[%clk 0:01:30.4]} 21. Qe2 {[%clk 0:01:01.9]} 21... Raf8 {[%clk 0:01:24.4]} 22.
Rae1 {[%clk 0:00:59.5]} 22... Qh4 {[%clk 0:01:21.9]} 23. Kg1 {[%clk 0:00:54.4]}
23... Nf4 {[%clk 0:01:15.3]} 24. Bxf4 {[%clk 0:00:44]} 24... Qxf4 {[%clk
0:01:13.6]} 25. Qe4 {[%clk 0:00:42.6]} 25... Qxe4 {[%clk 0:01:05.2]} 26. Rxe4
{[%clk 0:00:41.9]} 26... Kf7 {[%clk 0:01:02.5]} 27. Rd1 {[%clk 0:00:38.5]} 27...
Ke6 {[%clk 0:01:00.3]} 28. f3 {[%clk 0:00:35.5]} 28... Rf4 {[%clk 0:00:59.3]}
29. Rxf4 {[%clk 0:00:30.6]} 29... Rxf4 {[%clk 0:00:58.3]} 30. c5 {[%clk
0:00:30]} 30... Rd4 {[%clk 0:00:56.7]} 31. Rc1 {[%clk 0:00:21.7]} 31... Rd2
{[%clk 0:00:55.5]} 32. Rb1 {[%clk 0:00:19.6]} 32... Kd5 {[%clk 0:00:54.1]} 33.
Kh2 {[%clk 0:00:19.1]} 33... Kxc5 {[%clk 0:00:53.4]} 34. h4 {[%clk 0:00:19.4]}
34... Kd5 {[%clk 0:00:51.7]} 35. Kg3 {[%clk 0:00:19.2]} 35... Ke6 {[%clk
0:00:50.9]} 36. a4 {[%clk 0:00:17.7]} 36... Kf5 {[%clk 0:00:49.2]} 37. b4 {[%clk
0:00:17.3]} 37... Rd4 {[%clk 0:00:48.4]} 38. b5 {[%clk 0:00:16.8]} 38... Rxa4
{[%clk 0:00:47]} 39. bxc6 {[%clk 0:00:16.8]} 39... bxc6 {[%clk 0:00:46.3]} 40.
Rb7 {[%clk 0:00:17.3]} 40... c5 {[%clk 0:00:42.1]} 41. Rxh7 {[%clk 0:00:15.9]}
41... Ra6 {[%clk 0:00:40.3]} 42. Rc7 {[%clk 0:00:15.1]} 42... Ra5 {[%clk
0:00:39.1]} 43. Rc6 {[%clk 0:00:14.1]} 43... Rb5 {[%clk 0:00:36]} 44. Ra6 {[%clk
0:00:13.9]} 44... Rb7 {[%clk 0:00:33.6]} 45. Rc6 {[%clk 0:00:13.7]} 45... Rb5
{[%clk 0:00:31.9]} 46. Kh3 {[%clk 0:00:13.7]} 46... a5 {[%clk 0:00:27.8]} 47.
g4+ {[%clk 0:00:13.3]} 47... Kf4 {[%clk 0:00:26.6]} 48. Rf6+ {[%clk 0:00:13.5]}
48... Ke3 {[%clk 0:00:24.4]} 49. h5 {[%clk 0:00:13.8]} 49... gxh5 {[%clk
0:00:22.1]} 50. gxh5 {[%clk 0:00:13.9]} 50... e4 {[%clk 0:00:21.3]} 51. fxe4
{[%clk 0:00:12.7]} 51... c4 {[%clk 0:00:20.6]} 52. Kg4 {[%clk 0:00:11]} 52...
Rc5 {[%clk 0:00:17.9]} 53. h6 {[%clk 0:00:10.7]} 53... Rc8 {[%clk 0:00:16.3]}
54. Kg5 {[%clk 0:00:04.9]} 54... c3 {[%clk 0:00:15.3]} 55. h7 {[%clk 0:00:04.8]}
55... c2 {[%clk 0:00:13.4]} 56. Rc6 {[%clk 0:00:04.8]} 56... Rxc6 {[%clk
0:00:11.7]} 57. h8=Q {[%clk 0:00:04.7]} 57... c1=Q {[%clk 0:00:09.8]} 58. Qh3+
{[%clk 0:00:03]} 58... Kd4+ {[%clk 0:00:08.9]} 59. Kf5 {[%clk 0:00:03.2]} 59...
Qc5+ {[%clk 0:00:06.4]} 60. Kg4 {[%clk 0:00:03.2]} 60... Rg6+ {[%clk 0:00:04.8]}
0-1

[Event "*** SCC Grand Prix: Titled Tuesday Blitz"]
[Site "Chess.com"]
[Date "2020.08.11"]
[Round "7"]
[White "TranJMinh"]
[Black "Paladin61"]
[Result "0-1"]
[WhiteElo "2831"]
[BlackElo "2663"]
[TimeControl "180+1"]
[EndTime "11:19:44 PDT"]
[Termination "Paladin61 won on time"]

1. d4 {[%clk 0:03:00.9]} 1... Nf6 {[%clk 0:02:59.2]} 2. c4 {[%clk 0:03:01.4]}
2... g6 {[%clk 0:02:59.5]} 3. Nc3 {[%clk 0:03:01.7]} 3... Bg7 {[%clk 0:02:59.9]}
4. e4 {[%clk 0:03:02.3]} 4... O-O {[%clk 0:03:00.1]} 5. Bd3 {[%clk 0:03:02.9]}
5... d6 {[%clk 0:02:56.2]} 6. Nge2 {[%clk 0:03:03.4]} 6... Nc6 {[%clk
0:02:56.5]} 7. O-O {[%clk 0:03:03.2]} 7... Nh5 {[%clk 0:02:57.1]} 8. Be3 {[%clk
0:03:02.3]} 8... e5 {[%clk 0:02:54.8]} 9. Bc2 {[%clk 0:02:53.9]} 9... exd4
{[%clk 0:02:37.3]} 10. Nxd4 {[%clk 0:02:54.8]} 10... Ne5 {[%clk 0:02:37]} 11.
Qe2 {[%clk 0:02:33.2]} 11... Ng4 {[%clk 0:02:32.9]} 12. Rad1 {[%clk 0:02:29.7]}
12... Nxe3 {[%clk 0:02:21.9]} 13. Qxe3 {[%clk 0:02:30.6]} 13... Bg4 {[%clk
0:02:20.4]} 14. f3 {[%clk 0:02:25.6]} 14... Bd7 {[%clk 0:02:18.9]} 15. g3 {[%clk
0:01:36.8]} 15... c6 {[%clk 0:02:10.2]} 16. Nde2 {[%clk 0:01:33.6]} 16... Qc7
{[%clk 0:02:03.9]} 17. Rd2 {[%clk 0:01:23.6]} 17... Be6 {[%clk 0:01:52]} 18. b3
{[%clk 0:01:21.1]} 18... a6 {[%clk 0:01:34.6]} 19. Rfd1 {[%clk 0:01:21.3]} 19...
Rad8 {[%clk 0:01:32.8]} 20. Nd4 {[%clk 0:01:19.3]} 20... Bc8 {[%clk 0:01:23.2]}
21. Bd3 {[%clk 0:01:16.2]} 21... Qb6 {[%clk 0:01:08.1]} 22. Bf1 {[%clk 0:01:13]}
22... Rfe8 {[%clk 0:01:03.5]} 23. Qf2 {[%clk 0:01:03.2]} 23... Bd7 {[%clk
0:00:47.6]} 24. Bg2 {[%clk 0:01:02.3]} 24... Qc7 {[%clk 0:00:41.3]} 25. Nde2
{[%clk 0:00:59.4]} 25... Be6 {[%clk 0:00:39.1]} 26. Nd4 {[%clk 0:00:59.5]} 26...
Bc8 {[%clk 0:00:38]} 27. Rd3 {[%clk 0:00:54.8]} 27... Nf6 {[%clk 0:00:27.3]} 28.
Nde2 {[%clk 0:00:52.1]} 28... b5 {[%clk 0:00:23]} 29. c5 {[%clk 0:00:29]} 29...
dxc5 {[%clk 0:00:19.2]} 30. Qxc5 {[%clk 0:00:27.1]} 30... Bf8 {[%clk 0:00:19]}
31. Qf2 {[%clk 0:00:25.7]} 31... Rxd3 {[%clk 0:00:17.9]} 32. Rxd3 {[%clk
0:00:25.8]} 32... Rd8 {[%clk 0:00:18.8]} 33. Rxd8 {[%clk 0:00:19.3]} 33... Qxd8
{[%clk 0:00:18.7]} 34. Qd4 {[%clk 0:00:16.2]} 34... Qxd4+ {[%clk 0:00:13.5]} 35.
Nxd4 {[%clk 0:00:17.1]} 35... Bc5 {[%clk 0:00:13.2]} 36. Ne2 {[%clk 0:00:16]}
36... Bb6 {[%clk 0:00:12.4]} 37. Kf1 {[%clk 0:00:14.1]} 37... c5 {[%clk
0:00:09.2]} 38. Nc2 {[%clk 0:00:14.6]} 38... Be6 {[%clk 0:00:07.9]} 39. f4
{[%clk 0:00:14.6]} 39... Kf8 {[%clk 0:00:05.8]} 40. e5 {[%clk 0:00:12]} 40...
Nd5 {[%clk 0:00:05.3]} 41. Bxd5 {[%clk 0:00:06]} 41... Bxd5 {[%clk 0:00:04.8]}
42. Nc3 {[%clk 0:00:06.9]} 42... Bc6 {[%clk 0:00:04.3]} 43. Ne3 {[%clk
0:00:06.3]} 43... Ba5 {[%clk 0:00:04.5]} 44. Ncd5 {[%clk 0:00:06.1]} 44... h5
{[%clk 0:00:04.5]} 45. Ke2 {[%clk 0:00:06.2]} 45... Ke8 {[%clk 0:00:04.7]} 46.
Kd3 {[%clk 0:00:06.6]} 46... Kd7 {[%clk 0:00:04.8]} 47. Nf6+ {[%clk 0:00:07.2]}
47... Ke6 {[%clk 0:00:04.7]} 48. Ne4 {[%clk 0:00:07.6]} 48... Bb6 {[%clk
0:00:04.4]} 49. Ng5+ {[%clk 0:00:07.3]} 49... Ke7 {[%clk 0:00:04.7]} 50. Ne4
{[%clk 0:00:06]} 50... Ba7 {[%clk 0:00:04.5]} 51. Ng5 {[%clk 0:00:05.8]} 51...
Bb6 {[%clk 0:00:04.5]} 52. h4 {[%clk 0:00:04.9]} 52... Ba7 {[%clk 0:00:04.5]}
53. Nh7 {[%clk 0:00:05.3]} 53... Bb6 {[%clk 0:00:03.9]} 54. Nf6 {[%clk
0:00:05.8]} 54... Bd8 {[%clk 0:00:03.6]} 55. Ng8+ {[%clk 0:00:05.6]} 55... Ke6
{[%clk 0:00:03.8]} 56. Nh6 {[%clk 0:00:03.4]} 56... a5 {[%clk 0:00:04.3]} 57. a3
{[%clk 0:00:02.9]} 57... Be7 {[%clk 0:00:04.8]} 58. Kc3 {[%clk 0:00:02.4]} 58...
a4 {[%clk 0:00:03.9]} 59. b4 {[%clk 0:00:02.5]} 59... cxb4+ {[%clk 0:00:03.8]}
60. axb4 {[%clk 0:00:03.4]} 60... Bf8 {[%clk 0:00:03.6]} 61. Ng8 {[%clk
0:00:03.2]} 61... Be7 {[%clk 0:00:04]} 62. Nc2 {[%clk 0:00:03.5]} 62... Bd8
{[%clk 0:00:03.6]} 63. Nd4+ {[%clk 0:00:04.1]} 63... Kd5 {[%clk 0:00:03.9]} 64.
Nc2 {[%clk 0:00:03.5]} 64... Bd7 {[%clk 0:00:04]} 65. Nd4 {[%clk 0:00:03.3]}
65... Ke4 {[%clk 0:00:04]} 66. Nc2 {[%clk 0:00:04.2]} 66... Kf3 {[%clk
0:00:03.9]} 67. Kd4 {[%clk 0:00:04.2]} 67... Kxg3 {[%clk 0:00:04.8]} 68. Kd5
{[%clk 0:00:04.7]} 68... Kxf4 {[%clk 0:00:04.8]} 69. Kd6 {[%clk 0:00:05.6]}
69... Be6 {[%clk 0:00:05.4]} 70. Nd4 {[%clk 0:00:06.2]} 70... Bxh4 {[%clk
0:00:05.8]} 71. Nxe6+ {[%clk 0:00:05.4]} 71... fxe6 {[%clk 0:00:05.7]} 72. Kxe6
{[%clk 0:00:05.4]} 72... a3 {[%clk 0:00:06.6]} 73. Kf7 {[%clk 0:00:05.2]} 73...
a2 {[%clk 0:00:07.5]} 74. e6 {[%clk 0:00:06.1]} 74... a1=Q {[%clk 0:00:07.8]}
75. e7 {[%clk 0:00:07]} 75... Bxe7 {[%clk 0:00:07.3]} 76. Nxe7 {[%clk
0:00:07.9]} 76... Qa2+ {[%clk 0:00:07.3]} 77. Ke8 {[%clk 0:00:08.1]} 77... Qb3
{[%clk 0:00:07.5]} 78. Kd7 {[%clk 0:00:09]} 78... Qxb4 {[%clk 0:00:07.4]} 79.
Ke8 {[%clk 0:00:09.9]} 79... Qxe7+ {[%clk 0:00:06.3]} 80. Kxe7 {[%clk
0:00:10.8]} 80... h4 {[%clk 0:00:06.7]} 0-1